[Event "25th Zadar Open 2018"]
[Site "Zadar"]
[Date "2018.12.15"]
[Round "1.20"]
[White "Karthik Kumar Pradeep"]
[Black "Ivekovic, Bozidar"]
[Result "1-0"]
[ECO "D12"]
[WhiteElo "2230"]
[BlackElo "2406"]
[Annotator "NA"]
[PlyCount "81"]
[EventDate "2018.12.15"]
[EventType "swiss"]
[EventCountry "CRO"]
[SourceTitle "playchess.com"]
[Source "ChessBase"]
[SourceQuality "1"]
[TimeControl "40/5400+30:1800+30"]

1. d4 {[%emt 0:00:30]} d5 {[%emt 0:00:30]} 2. c4 {[%emt 0:00:30]} c6 {[%emt 0:00:30]} 3. Nf3 {[%emt 0:00:30]} Nf6 {[%emt 0:00:00]} 4. e3 {[%emt 0:00:30]} Bf5 {[%emt 0:00:00]} 5. Nc3 {[%emt 0:00:00]} e6 {[%emt 0:06:30]} 6. Nh4 {[%emt 0:01:00]} Be4 {[%emt 0:06:30]} 7. f3 {[%emt 0:00:30]} Bg6 {[%emt 0:00:30]} 8. Qb3 {[%emt 0:01:30]} Qc7 {[%emt 0:16:30]} 9. Bd2 {[%emt 0:02:30]} Bd6 {[%emt 0:12:30]} 10. Nxg6 {[%emt 0:03:30]} hxg6 {[%emt 0:00:30]} 11. f4 {[%emt 0:00:30]} Nbd7 {[%emt 0:05:30]} 12. Rc1 {[%emt 0:12:30]} Qb6 {[%emt 0:05:30]} 13. Qc2 {[%emt 0:01:30]} Bb4 {[%emt 0:00:30]} 14. c5 {[%emt 0:31:30]} Qd8 {[%emt 0:00:30]} 15. g3 {[%emt 0:14:30]} Bxc3 {[%emt 0:10:30]} 16. Bxc3 {[%emt 0:00:00]} Ne4 {[%emt 0:00:30]} 17. Bg2 {[%emt 0:00:00]} Ndf6 {[%emt 0:00:00]} 18. Qe2 {[%emt 0:07:30]} Qc7 {[%emt 0:05:00]} 19. O-O {[%emt 0:00:30]} Ke7 {[%emt 0:03:30]} 20. Rfd1 {[%emt 0:07:54]} g5 {[%emt 0:01:30]} 21. b4 {[%emt 0:03:30]} Rh7 {[%emt 0:02:30]} 22. Be1 {[%emt 0:02:14]} Rah8 {[%emt 0:00:30]} 23. Bf3 {[%emt 0:00:11]} gxf4 {[%emt 0:04:41]} 24. exf4 {[%emt 0:00:03]} g5 {[%emt 0:00:07]} 25. Bxe4 {[%emt 0:04:37]} Nxe4 {[%emt 0:00:06]} 26. fxg5 {[%emt 0:02:23]} Nxg5 {[%emt 0:02:07]} 27. Bd2 {[%emt 0:01:03]} Ne4 {[%emt 0:01:50]} 28. Bf4 {[%emt 0:00:21]} Qc8 {[%emt 0:00:05]} 29. Rc2 {[%emt 0:00:20]} Qg8 {[%emt 0:01:26]} 30. Qf3 {[%emt 0:00:20]} Qg6 {[%emt 0:01:56]} 31. Rg2 {[%emt 0:00:56]} f6 {[%emt 0:00:47]} 32. b5 {[%emt 0:01:17]} Qe8 {[%emt 0:06:00]} 33. bxc6 {[%emt 0:00:22]} Qxc6 {[%emt 0:02:29]} 34. Rb2 {[%emt 0:00:04]} Rh5 {[%emt 0:04:27]} 35. Rdb1 {[%emt 0:00:16]} e5 {[%emt 0:00:12]} 36. Rxb7+ {[%emt 0:00:23]} Kd8 {[%emt 0:01:00]} 37. Rxa7 {[%emt 0:01:11]} Qc8 {[%emt 0:00:21]} 38. Bxe5 {[%emt 0:01:17]} Rxe5 {[%emt 0:00:35]} 39. Qa3 {[%emt 0:00:38]} Nd2 {[%emt 0:00:34]} 40. Qa5+ {[%emt 0:00:00]} Ke8 {[%emt 0:00:00]} 41. Ra8 {[%emt 0:05:40]} 1-0

[Event "25th Zadar Open 2018"]
[Site "Zadar"]
[Date "2018.12.16"]
[Round "2.9"]
[White "Tica, Sven"]
[Black "Karthik Kumar Pradeep"]
[Result "1/2-1/2"]
[ECO "E00"]
[WhiteElo "2439"]
[BlackElo "2230"]
[Annotator "NA"]
[PlyCount "89"]
[EventDate "2018.12.15"]
[EventType "swiss"]
[EventCountry "CRO"]
[SourceTitle "playchess.com"]
[Source "ChessBase"]
[SourceQuality "1"]
[TimeControl "40/5400+30:1800+30"]

1. d4 {[%emt 0:00:30]} Nf6 {[%emt 0:00:30]} 2. c4 {[%emt 0:00:00]} e6 {[%emt 0:00:30]} 3. g3 {[%emt 0:00:00]} Bb4+ {[%emt 0:00:30]} 4. Bd2 {[%emt 0:00:30]} Bxd2+ {[%emt 0:00:00]} 5. Nxd2 {[%emt 0:00:30]} d6 {[%emt 0:00:00] LiveBook: 34 Games} 6. e3 {[%emt 0:00:30]} O-O {[%emt 0:01:30]} 7. Bg2 {[%emt 0:00:00]} e5 {[%emt 0:02:30]} 8. Ne2 {[%emt 0:00:00]} c6 {[%emt 0:07:30]} 9. O-O {[%emt 0:00:30]} Nbd7 {[%emt 0:03:30]} 10. b4 {[%emt 0:11:30]} exd4 {[%emt 0:06:30]} 11. Nxd4 {[%emt 0:01:30]} Ne5 $14 {[%emt 0:27:30]} 12. Qb3 {[%emt 0:10:30]} c5 {[%emt 0:06:30]} 13. Nb5 {[%emt 0:01:30]} a6 {[%emt 0:01:30]} 14. Nc3 {[%emt 0:01:30]} cxb4 {[%emt 0:07:30]} 15. Qxb4 {[%emt 0:00:30]} Nd3 {[%emt 0:00:30]} 16. Qb1 {[%emt 0:01:30]} Nc5 {[%emt 0:00:30]} 17. Nb3 {[%emt 0:00:30]} Rb8 {[%emt 0:07:30]} 18. Rd1 {[%emt 0:08:30]} Qb6 {[%emt 0:04:30]} 19. Nd4 {[%emt 0:07:30]} Qc7 {[%emt 0:08:41]} 20. Qb4 {[%emt 0:03:30]} Bd7 {[%emt 0:05:43]} 21. Rab1 {[%emt 0:01:30]} Bc6 {[%emt 0:01:53]} 22. Nf5 {[%emt 0:10:30]} Rfd8 {[%emt 0:03:40]} 23. Qb6 {[%emt 0:00:30]} Qxb6 {[%emt 0:00:59]} 24. Rxb6 {[%emt 0:00:30]} Bxg2 {[%emt 0:00:46]} 25. Kxg2 {[%emt 0:00:00]} Nfe4 {[%emt 0:01:13]} 26. Nxe4 {[%emt 0:01:00]} Nxe4 {[%emt 0:00:01]} 27. Rd4 {[%emt 0:00:30]} Nc5 {[%emt 0:00:51]} 28. Nxd6 {[%emt 0:01:30]} Rd7 {[%emt 0:00:38]} 29. Kf3 {[%emt 0:03:30]} Kf8 {[%emt 0:00:09]} 30. Ne4 {[%emt 0:02:30]} Rc7 {[%emt 0:00:00]} 31. Nxc5 {[%emt 0:04:30]} Rxc5 {[%emt 0:00:34]} 32. Ke4 {[%emt 0:00:30]} Rbc8 {[%emt 0:00:40]} 33. Rxb7 {[%emt 0:06:30]} Rxc4 {[%emt 0:00:01]} 34. Ra7 {[%emt 0:00:30]} R8c6 {[%emt 0:01:30]} 35. a4 {[%emt 0:01:30]} g6 {[%emt 0:00:36]} 36. a5 {[%emt 0:00:30]} R4c5 {[%emt 0:00:29]} 37. Rd5 {[%emt 0:02:54]} Rc4+ {[%emt 0:00:30]} 38. Kd3 {[%emt 0:00:16]} Rc3+ {[%emt 0:00:02]} 39. Ke2 {[%emt 0:01:27]} Ra3 {[%emt 0:01:01]} 40. Kf3 {[%emt 0:12:53]} Ra2 {[%emt 0:00:00]} 41. g4 {[%emt 0:08:00]} Rf6+ {[%emt 0:09:33]} 42. Ke4 {[%emt 0:01:30]} Re6+ {[%emt 0:02:30]} 43. Kf3 {[%emt 0:02:30]} Rf6+ {[%emt 0:00:00]} 44. Ke4 {[%emt 0:01:30]} Re6+ {[%emt 0:00:00]} 45. Kf3 {[%emt 0:00:00]} 1/2-1/2

[Event "25th Zadar Open 2018"]
[Site "Zadar"]
[Date "2018.12.16"]
[Round "2.21"]
[White "Sutkovic, Damir"]
[Black "Sokac, Marko"]
[Result "1/2-1/2"]
[ECO "D85"]
[WhiteElo "2345"]
[BlackElo "2301"]
[Annotator "NA"]
[PlyCount "95"]
[EventDate "2018.12.15"]
[EventType "swiss"]
[EventCountry "CRO"]
[SourceTitle "playchess.com"]
[Source "ChessBase"]
[SourceQuality "1"]
[TimeControl "40/5400+30:1800+30"]

1. d4 {[%emt 0:00:30]} Nf6 {[%emt 0:00:30]} 2. c4 {[%emt 0:00:00]} g6 {[%emt 0:00:00]} 3. Nc3 {[%emt 0:00:00]} d5 {[%emt 0:00:00]} 4. cxd5 {[%emt 0:00:00]} Nxd5 {[%emt 0:00:30]} 5. Bd2 {[%emt 0:00:00] LiveBook: 1883 Games} Bg7 {[%emt 0:00:30]} 6. e4 {[%emt 0:00:30]} Nxc3 {[%emt 0:00:30]} 7. Bxc3 {[%emt 0:00:00]} O-O {[%emt 0:00:30]} 8. Rc1 {[%emt 0:02:00]} c5 {[%emt 0:06:30]} 9. dxc5 {[%emt 0:02:30]} Bxc3+ {[%emt 0:00:30]} 10. Rxc3 {[%emt 0:00:30]} Qxd1+ {[%emt 0:00:30]} 11. Kxd1 {[%emt 0:00:00]} Be6 {[%emt 0:01:30]} 12. Nf3 {[%emt 0:08:00]} a5 {[%emt 0:03:30]} 13. a4 {[%emt 0:14:30]} Rd8+ $14 {[%emt 0:12:30]} 14. Kc1 {[%emt 0:06:30]} Nc6 {[%emt 0:08:30]} 15. Bb5 {[%emt 0:02:30]} Nb4 {[%emt 0:01:30]} 16. Kb1 {[%emt 0:00:30]} f6 {[%emt 0:10:30]} 17. h3 {[%emt 0:11:30]} Kg7 {[%emt 0:11:30]} 18. b3 {[%emt 0:05:30]} h5 {[%emt 0:01:30]} 19. Rhc1 {[%emt 0:02:30]} g5 {[%emt 0:00:30]} 20. Bc4 {[%emt 0:07:30]} Bxc4 {[%emt 0:01:30]} 21. Rxc4 {[%emt 0:00:30]} e5 {[%emt 0:00:30]} 22. g4 {[%emt 0:20:46]} Rd3 {[%emt 0:04:30]} 23. R4c3 {[%emt 0:01:38]} Rad8 {[%emt 0:01:30]} 24. gxh5 {[%emt 0:05:28]} Kh6 {[%emt 0:00:30]} 25. Nh2 {[%emt 0:00:54]} Kxh5 {[%emt 0:01:30]} 26. Ng4 {[%emt 0:00:07]} Kg6 {[%emt 0:00:30]} 27. Ne3 {[%emt 0:03:10]} Rd2 {[%emt 0:00:30]} 28. Nc4 {[%emt 0:02:30]} Rxf2 {[%emt 0:00:30]} 29. Nxa5 {[%emt 0:00:27]} Rdd2 {[%emt 0:01:30]} 30. Nc4 {[%emt 0:00:39]} Rde2 {[%emt 0:01:30]} 31. Re3 {[%emt 0:00:22]} Rxe3 {[%emt 0:09:30]} 32. Nxe3 {[%emt 0:00:06]} Rf3 {[%emt 0:00:30]} 33. Rc3 {[%emt 0:00:17]} Rxh3 {[%emt 0:00:30]} 34. Kb2 {[%emt 0:00:07]} Kh5 {[%emt 0:13:10]} 35. Ka3 {[%emt 0:00:59]} Nc6 {[%emt 0:04:28]} 36. b4 {[%emt 0:00:07]} g4 {[%emt 0:01:35]} 37. b5 {[%emt 0:02:17]} Nd4 {[%emt 0:00:24]} 38. Kb4 {[%emt 0:01:00]} g3 {[%emt 0:01:07]} 39. c6 {[%emt 0:01:12]} bxc6 {[%emt 0:00:51]} 40. bxc6 {[%emt 0:00:00]} Nxc6+ {[%emt 0:00:00]} 41. Rxc6 {[%emt 0:02:54]} Kg5 {[%emt 0:04:25]} 42. Rc8 {[%emt 0:20:24]} Kf4 {[%emt 0:02:30]} 43. Nd5+ {[%emt 0:00:18]} Kxe4 {[%emt 0:00:30]} 44. Nxf6+ {[%emt 0:00:07]} Kf5 {[%emt 0:00:30]} 45. Nd5 {[%emt 0:00:38]} g2 {[%emt 0:04:30]} 46. Rg8 {[%emt 0:00:47]} Ke4 {[%emt 0:00:00]} 47. Rxg2 {[%emt 0:04:55]} Kxd5 {[%emt 0:00:00]} 48. a5 {[%emt 0:00:11]} 1/2-1/2

[Event "25th Zadar Open 2018"]
[Site "Zadar"]
[Date "2018.12.16"]
[Round "2.22"]
[White "Blagojevic, Tijana"]
[Black "Paszewski, Mateusz"]
[Result "1/2-1/2"]
[ECO "B12"]
[WhiteElo "2208"]
[BlackElo "2342"]
[Annotator "NA"]
[PlyCount "73"]
[EventDate "2018.12.15"]
[EventType "swiss"]
[EventCountry "CRO"]
[SourceTitle "playchess.com"]
[Source "ChessBase"]
[SourceQuality "1"]
[TimeControl "40/5400+30:1800+30"]

1. e4 {[%emt 0:04:30]} c6 {[%emt 0:00:30]} 2. d4 {[%emt 0:00:30]} d5 {[%emt 0:00:00]} 3. e5 {[%emt 0:00:00]} Bf5 {[%emt 0:00:00]} 4. Nd2 {[%emt 0:00:00]} e6 {[%emt 0:00:00]} 5. Nb3 {[%emt 0:00:00]} Nd7 {[%emt 0:00:00]} 6. Nf3 {[%emt 0:00:00]} h6 {[%emt 0:01:30]} 7. Be2 {[%emt 0:00:30]} Ne7 {[%emt 0:00:00]} 8. O-O {[%emt 0:00:00]} g5 {[%emt 0:00:00]} 9. Ne1 {[%emt 0:00:00]} Qc7 {[%emt 0:00:30]} 10. Bg4 {[%emt 0:02:30]} c5 {[%emt 0:09:30]} 11. c3 {[%emt 0:03:30]} Bg7 {[%emt 0:04:30]} 12. Be3 {[%emt 0:01:30]} (12. Bxf5 $14 Nxf5 13. dxc5) 12... O-O-O {[%emt 0:20:30]} 13. Rc1 $15 {[%emt 0:05:30]} Bxg4 {[%emt 0:15:30]} 14. Qxg4 {[%emt 0:00:30]} h5 {[%emt 0:00:00]} 15. Qe2 {[%emt 0:03:30]} Rdg8 {[%emt 0:13:00]} 16. c4 {[%emt 0:03:30]} dxc4 {[%emt 0:06:30]} 17. Rxc4 {[%emt 0:01:30]} Kb8 {[%emt 0:00:30]} 18. Nxc5 {[%emt 0:01:30]} Nxc5 {[%emt 0:00:30]} 19. Rxc5 {[%emt 0:00:30]} Qd7 {[%emt 0:00:30]} 20. Nd3 {[%emt 0:06:30]} Nd5 {[%emt 0:03:30]} 21. Rfc1 {[%emt 0:01:30]} Bf8 {[%emt 0:00:30]} 22. R5c4 {[%emt 0:01:30]} Be7 {[%emt 0:01:30]} 23. b4 {[%emt 0:02:30]} g4 {[%emt 0:01:30]} 24. Nc5 {[%emt 0:14:30]} Bxc5 {[%emt 0:03:25]} 25. dxc5 {[%emt 0:00:30]} Rc8 {[%emt 0:00:27]} 26. c6 {[%emt 0:07:30]} Rxc6 {[%emt 0:01:48]} 27. Rxc6 {[%emt 0:00:30]} bxc6 {[%emt 0:00:02]} 28. Bc5 {[%emt 0:01:30]} Kb7 {[%emt 0:03:32]} 29. Bd6 {[%emt 0:02:30]} f5 {[%emt 0:01:48]} 30. Rc5 {[%emt 0:00:30]} Rc8 {[%emt 0:03:30]} 31. Ra5 {[%emt 0:01:30]} Ka8 {[%emt 0:03:45]} 32. Qc4 {[%emt 0:02:30]} h4 {[%emt 0:01:20]} 33. Bc5 {[%emt 0:05:30]} Rc7 {[%emt 0:00:04]} 34. Bd6 {[%emt 0:00:30]} Rc8 {[%emt 0:00:05]} 35. Bc5 {[%emt 0:00:30]} Rc7 {[%emt 0:00:01]} 36. Bd6 {[%emt 0:00:00]} Rc8 {[%emt 0:02:31]} 37. Bc5 {[%emt 0:06:00]} 1/2-1/2

[Event "25th Zadar Open 2018"]
[Site "Zadar"]
[Date "2018.12.16"]
[Round "2.24"]
[White "Ivekovic, Bozidar"]
[Black "Bosnjak, Petar"]
[Result "0-1"]
[ECO "E05"]
[WhiteElo "2406"]
[BlackElo "2255"]
[Annotator "NA"]
[PlyCount "80"]
[EventDate "2018.12.15"]
[EventType "swiss"]
[EventCountry "CRO"]
[SourceTitle "playchess.com"]
[Source "ChessBase"]
[SourceQuality "1"]
[TimeControl "40/5400+30:1800+30"]

1. d4 {[%emt 0:00:30]} Nf6 {[%emt 0:00:30]} 2. c4 {[%emt 0:00:00]} e6 {[%emt 0:00:00]} 3. g3 {[%emt 0:00:00]} d5 {[%emt 0:00:00]} 4. Bg2 {[%emt 0:00:30]} Be7 {[%emt 0:00:30]} 5. Nf3 {[%emt 0:00:00]} O-O {[%emt 0:00:00]} 6. O-O {[%emt 0:00:00]} dxc4 {[%emt 0:00:00]} 7. Qc2 {[%emt 0:00:30]} a6 {[%emt 0:00:30]} 8. a4 {[%emt 0:00:00]} Bd7 {[%emt 0:00:30]} 9. Qxc4 {[%emt 0:05:00]} Bc6 {[%emt 0:00:30]} 10. Nc3 {[%emt 0:01:30]} b5 {[%emt 0:02:30]} 11. Qd3 {[%emt 0:06:30]} b4 {[%emt 0:01:30]} 12. Nb1 {[%emt 0:01:30]} Be4 {[%emt 0:03:30]} 13. Qd1 {[%emt 0:13:30]} c5 {[%emt 0:05:30]} 14. Nbd2 {[%emt 0:04:30]} Bd5 {[%emt 0:03:30]} 15. dxc5 $15 {[%emt 0:01:30] LiveBook: 26 Games} Nbd7 {[%emt 0:08:30]} 16. c6 {[%emt 0:06:30]} Bxc6 {[%emt 0:11:30]} 17. Nc4 {[%emt 0:11:30]} Bd5 {[%emt 0:05:30]} 18. Ne3 {[%emt 0:01:30]} Be4 {[%emt 0:01:30]} 19. Nd2 {[%emt 0:04:30]} Bxg2 {[%emt 0:00:30]} 20. Kxg2 {[%emt 0:00:30]} Qc7 {[%emt 0:03:30]} 21. Nec4 {[%emt 0:05:30]} Nc5 {[%emt 0:11:30]} 22. Kg1 {[%emt 0:08:30]} Rac8 {[%emt 0:05:30]} 23. a5 {[%emt 0:02:30]} Nce4 {[%emt 0:04:30]} 24. Nb6 {[%emt 0:05:30]} Rcd8 {[%emt 0:02:30]} 25. Qe1 {[%emt 0:00:30]} Bc5 {[%emt 0:08:30]} 26. Kg2 {[%emt 0:03:26]} Bxb6 {[%emt 0:02:50]} 27. axb6 {[%emt 0:04:40]} Qxb6 {[%emt 0:00:18]} 28. Nc4 {[%emt 0:02:57]} Qb5 {[%emt 0:00:47]} 29. Na5 {[%emt 0:01:12]} Rc8 {[%emt 0:03:45]} 30. Nb3 {[%emt 0:01:08]} Qd5 {[%emt 0:01:53]} 31. f3 {[%emt 0:02:36]} Qxb3 {[%emt 0:00:22]} 32. fxe4 {[%emt 0:00:05]} Rc2 {[%emt 0:00:30]} 33. Qf2 {[%emt 0:03:46]} Qc4 {[%emt 0:01:31]} 34. Re1 {[%emt 0:00:12]} Nxe4 {[%emt 0:01:02]} 35. Qf3 {[%emt 0:00:08]} b3 {[%emt 0:01:07]} 36. Be3 {[%emt 0:00:24]} Rxb2 {[%emt 0:01:01]} 37. Rad1 {[%emt 0:00:08]} e5 {[%emt 0:04:58]} 38. Kh1 {[%emt 0:00:38]} Rc2 {[%emt 0:00:28]} 39. Rf1 {[%emt 0:01:05]} h6 {[%emt 0:00:48]} 40. Kg1 {[%emt 0:00:00]} Qxe2 {[%emt 0:01:28]} 0-1

[Event "25th Zadar Open 2018"]
[Site "Zadar"]
[Date "2018.12.16"]
[Round "2.25"]
[White "Bilobrk, Franjo"]
[Black "Warakomska, Anna"]
[Result "1-0"]
[ECO "D17"]
[WhiteElo "2364"]
[BlackElo "2233"]
[Annotator "NA"]
[PlyCount "91"]
[EventDate "2018.12.15"]
[EventType "swiss"]
[EventCountry "CRO"]
[SourceTitle "playchess.com"]
[Source "ChessBase"]
[SourceQuality "1"]
[TimeControl "40/5400+30:1800+30"]

1. d4 {[%emt 0:00:30]} d5 {[%emt 0:00:30]} 2. c4 {[%emt 0:00:00]} c6 {[%emt 0:00:00]} 3. Nf3 {[%emt 0:00:00]} Nf6 {[%emt 0:00:00]} 4. Nc3 {[%emt 0:00:30]} dxc4 {[%emt 0:00:30]} 5. a4 {[%emt 0:00:30]} Bf5 {[%emt 0:00:30]} 6. Ne5 {[%emt 0:00:30]} e6 {[%emt 0:00:30]} 7. f3 {[%emt 0:04:30]} Bb4 {[%emt 0:01:30]} 8. e4 {[%emt 0:00:30]} Bxe4 {[%emt 0:01:30]} 9. fxe4 {[%emt 0:01:30]} Nxe4 {[%emt 0:00:00]} 10. Bd2 {[%emt 0:01:30]} Qxd4 {[%emt 0:01:00]} 11. Nxe4 {[%emt 0:00:30]} Qxe4+ {[%emt 0:00:00]} 12. Qe2 {[%emt 0:00:30]} Bxd2+ {[%emt 0:00:00]} 13. Kxd2 {[%emt 0:00:00]} Qd5+ {[%emt 0:00:00]} 14. Kc2 {[%emt 0:03:00]} Na6 {[%emt 0:02:00]} 15. Nxc4 {[%emt 0:03:30]} O-O-O {[%emt 0:18:30]} 16. Qe5 $14 {[%emt 0:09:30] LiveBook: 52 Games} f6 {[%emt 0:08:30]} 17. Qxd5 {[%emt 0:02:30]} cxd5 {[%emt 0:00:30]} 18. Na3 {[%emt 0:08:30]} Nc5 {[%emt 0:03:30]} 19. b4 {[%emt 0:00:30]} Ne4 {[%emt 0:03:30]} 20. a5 {[%emt 0:04:30]} e5 {[%emt 0:24:30]} 21. a6 {[%emt 0:01:30]} b6 {[%emt 0:04:30]} 22. Bd3 {[%emt 0:09:30]} Nd6 {[%emt 0:03:30]} 23. Rhd1 {[%emt 0:01:30]} Kd7 {[%emt 0:08:20]} 24. Kb3 {[%emt 0:03:30]} f5 {[%emt 0:09:57]} 25. Rac1 {[%emt 0:01:30]} Rc8 {[%emt 0:05:57]} 26. Nb5 {[%emt 0:04:30]} e4 {[%emt 0:00:58]} 27. Nxd6 {[%emt 0:07:30]} Rxc1 {[%emt 0:00:15]} 28. Rxc1 {[%emt 0:00:30]} Kxd6 {[%emt 0:00:03]} 29. Bb5 {[%emt 0:00:30]} d4 {[%emt 0:01:45]} 30. Rc6+ {[%emt 0:00:30]} Ke5 {[%emt 0:00:05]} 31. Rc7 {[%emt 0:01:30]} d3 {[%emt 0:00:04]} 32. Kc3 {[%emt 0:00:30]} Rd8 {[%emt 0:00:32]} 33. Rxa7 {[%emt 0:05:30]} d2 {[%emt 0:00:05]} 34. Be2 {[%emt 0:00:30]} d1=Q {[%emt 0:00:42]} 35. Bxd1 {[%emt 0:00:30]} Rxd1 {[%emt 0:00:03]} 36. Re7+ {[%emt 0:05:30]} Kf4 {[%emt 0:02:07]} 37. Kc4 {[%emt 0:00:34]} Rd2 {[%emt 0:01:56]} 38. a7 {[%emt 0:00:26]} Ra2 {[%emt 0:00:26]} 39. Kb5 {[%emt 0:00:30]} Ke3 {[%emt 0:00:33]} 40. Kxb6 {[%emt 0:00:00]} Kd2 {[%emt 0:00:00]} 41. b5 {[%emt 0:02:00]} e3 {[%emt 0:00:42]} 42. Kb7 {[%emt 0:00:30]} e2 {[%emt 0:01:30]} 43. a8=Q {[%emt 0:00:30]} Rxa8 {[%emt 0:00:00]} 44. Kxa8 {[%emt 0:00:00]} e1=Q {[%emt 0:00:00]} 45. Rxe1 {[%emt 0:00:00]} Kxe1 {[%emt 0:00:00]} 46. b6 {[%emt 0:00:00]} 1-0

[Event "25th Zadar Open 2018"]
[Site "Zadar"]
[Date "2018.12.16"]
[Round "2.26"]
[White "Nester, Ihor"]
[Black "Kantorik, Marian"]
[Result "1-0"]
[ECO "D02"]
[WhiteElo "2337"]
[BlackElo "2223"]
[Annotator "NA"]
[PlyCount "81"]
[EventDate "2018.12.15"]
[EventType "swiss"]
[EventCountry "CRO"]
[SourceTitle "playchess.com"]
[Source "ChessBase"]
[SourceQuality "1"]
[TimeControl "40/5400+30:1800+30"]

1. Nf3 {[%emt 0:08:30]} d5 {[%emt 0:00:30]} 2. d4 {[%emt 0:00:00]} Nc6 {[%emt 0:00:30]} 3. Bf4 {[%emt 0:02:00]} e6 {[%emt 0:02:30]} 4. e3 {[%emt 0:01:30]} Bd6 {[%emt 0:00:30]} 5. Bg3 {[%emt 0:00:30]} Nge7 {[%emt 0:00:30]} 6. a3 {[%emt 0:03:30]} Nf5 {[%emt 0:02:30]} 7. Bxd6 {[%emt 0:04:30]} Nxd6 {[%emt 0:02:30]} 8. Nbd2 {[%emt 0:00:30]} O-O {[%emt 0:04:30]} 9. Bd3 {[%emt 0:00:30]} b6 {[%emt 0:00:30]} 10. Ne5 $11 {[%emt 0:20:30]} Nxe5 {[%emt 0:08:30]} 11. dxe5 {[%emt 0:00:00]} Nf5 {[%emt 0:00:30]} 12. Qg4 {[%emt 0:10:00]} f6 {[%emt 0:03:30]} 13. e4 {[%emt 0:10:30]} Nh6 {[%emt 0:03:30]} 14. Qh5 {[%emt 0:01:30]} Bb7 {[%emt 0:11:30]} 15. O-O {[%emt 0:05:30]} dxe4 {[%emt 0:13:30]} 16. Nxe4 {[%emt 0:06:30]} Qd5 {[%emt 0:01:30]} 17. f3 {[%emt 0:06:05]} c5 {[%emt 0:08:30]} 18. Rad1 {[%emt 0:02:51]} Rad8 {[%emt 0:02:30]} 19. Nxf6+ {[%emt 0:03:14]} Rxf6 {[%emt 0:00:30]} 20. Be2 {[%emt 0:04:39]} Nf7 {[%emt 0:12:11]} 21. Rxd5 {[%emt 0:00:42]} Rxd5 {[%emt 0:00:05]} 22. f4 {[%emt 0:00:49]} Rf5 {[%emt 0:05:53]} 23. Qh3 {[%emt 0:00:15]} Rd2 {[%emt 0:01:23]} 24. Bf3 {[%emt 0:00:40]} Bxf3 {[%emt 0:01:32]} 25. Qxf3 {[%emt 0:00:03]} g5 {[%emt 0:00:48]} 26. Qc3 {[%emt 0:00:42]} Rd4 {[%emt 0:02:44]} 27. fxg5 {[%emt 0:00:23]} Rxg5 {[%emt 0:01:02]} 28. Qh3 {[%emt 0:02:05]} Rxe5 {[%emt 0:00:59]} 29. Qg3+ {[%emt 0:00:34]} Rg5 {[%emt 0:02:09]} 30. Qc7 {[%emt 0:00:36]} Rf5 {[%emt 0:02:48]} 31. Rxf5 {[%emt 0:00:17]} exf5 {[%emt 0:00:06]} 32. Qxa7 {[%emt 0:01:06]} Rd1+ {[%emt 0:03:10]} 33. Kf2 {[%emt 0:00:02]} Rd2+ {[%emt 0:00:00]} 34. Kg3 {[%emt 0:00:41]} Rxc2 {[%emt 0:00:18]} 35. Qxb6 {[%emt 0:00:11]} c4 {[%emt 0:00:43]} 36. a4 {[%emt 0:00:25]} c3 {[%emt 0:00:27]} 37. Qb8+ {[%emt 0:02:49]} Kg7 {[%emt 0:00:12]} 38. Qb3 {[%emt 0:00:19]} f4+ {[%emt 0:01:27]} 39. Kxf4 {[%emt 0:00:46]} Rxg2 {[%emt 0:02:25]} 40. Qxc3+ {[%emt 0:00:00]} Kh6 {[%emt 0:00:00]} 41. Qh3+ {[%emt 0:00:16]} 1-0

[Event "25th Zadar Open 2018"]
[Site "Zadar"]
[Date "2018.12.16"]
[Round "2.27"]
[White "Muha, Miljenko"]
[Black "Jeet, Jain"]
[Result "1-0"]
[ECO "D05"]
[WhiteElo "2334"]
[BlackElo "2212"]
[Annotator "NA"]
[PlyCount "81"]
[EventDate "2018.12.15"]
[EventType "swiss"]
[EventCountry "CRO"]
[SourceTitle "playchess.com"]
[Source "ChessBase"]
[SourceQuality "1"]
[TimeControl "40/5400+30:1800+30"]

1. Nf3 {[%emt 0:00:30]} d5 {[%emt 0:00:30]} 2. d4 {[%emt 0:00:00]} Nf6 {[%emt 0:00:30]} 3. c4 {[%emt 0:00:00]} e6 {[%emt 0:00:30]} 4. e3 {[%emt 0:00:30]} b6 {[%emt 0:00:30]} 5. b3 {[%emt 0:01:30]} Bb7 {[%emt 0:00:30]} 6. Bd3 {[%emt 0:04:30]} Nbd7 {[%emt 0:00:30]} 7. O-O {[%emt 0:07:30]} Be7 {[%emt 0:00:00]} 8. Bb2 {[%emt 0:00:30]} O-O {[%emt 0:00:00]} 9. Nbd2 {[%emt 0:00:30]} c5 {[%emt 0:02:30]} 10. Rc1 {[%emt 0:09:30]} Ne4 {[%emt 0:00:30]} 11. cxd5 {[%emt 0:02:30]} exd5 {[%emt 0:01:30]} 12. Qe2 {[%emt 0:09:30] LiveBook: 3 Games} a6 {[%emt 0:05:30]} 13. Rfd1 {[%emt 0:02:30]} f5 $11 {[%emt 0:04:30]} 14. dxc5 {[%emt 0:07:30]} bxc5 {[%emt 0:01:30]} 15. Nxe4 {[%emt 0:12:30]} fxe4 {[%emt 0:19:30]} 16. Bxe4 {[%emt 0:01:30]} dxe4 {[%emt 0:20:30]} 17. Ne5 {[%emt 0:00:30]} Bc8 {[%emt 0:15:30]} 18. Qc4+ {[%emt 0:00:30]} Kh8 {[%emt 0:00:00]} 19. Qxe4 {[%emt 0:02:30]} Qe8 {[%emt 0:11:25]} 20. Qxa8 {[%emt 0:01:30]} Nxe5 {[%emt 0:00:19]} 21. Bxe5 {[%emt 0:01:30]} Qg6 {[%emt 0:00:39]} 22. Qd5 {[%emt 0:02:30]} Bg4 {[%emt 0:00:31]} 23. Bg3 {[%emt 0:01:30]} h5 {[%emt 0:00:35]} 24. f3 {[%emt 0:04:30]} Bf5 {[%emt 0:00:09]} 25. Qe5 {[%emt 0:02:30]} Re8 {[%emt 0:02:01]} 26. Rd5 {[%emt 0:04:30]} Bg5 {[%emt 0:04:18]} 27. Qxf5 {[%emt 0:00:30]} Bxe3+ {[%emt 0:00:10]} 28. Kh1 {[%emt 0:00:30]} Qxf5 {[%emt 0:02:06]} 29. Rxf5 {[%emt 0:00:30]} Bxc1 {[%emt 0:00:06]} 30. Rxh5+ {[%emt 0:00:00]} Bh6 {[%emt 0:00:24]} 31. Rxc5 {[%emt 0:02:08]} Rd8 {[%emt 0:02:23]} 32. h4 {[%emt 0:00:30]} Bd2 {[%emt 0:00:10]} 33. Rc6 {[%emt 0:01:05]} Ra8 {[%emt 0:00:09]} 34. Be5 {[%emt 0:01:05]} Kh7 {[%emt 0:01:03]} 35. Rc7 {[%emt 0:01:14]} Rg8 {[%emt 0:00:40]} 36. g4 {[%emt 0:00:17]} a5 {[%emt 0:00:13]} 37. f4 {[%emt 0:00:37]} Kh6 {[%emt 0:00:54]} 38. Kg2 {[%emt 0:00:24]} Be1 {[%emt 0:00:51]} 39. Kh3 {[%emt 0:01:35]} a4 {[%emt 0:00:16]} 40. bxa4 {[%emt 0:00:00]} g6 {[%emt 0:00:00]} 41. g5+ {[%emt 0:01:05]} 1-0